{"text_format":"3","workbook":"xlsx","n_sheets":6,"sheets":["Start","Dashboard","Udgifter og indtægter","Budgetrapport","Datalister","Pivottabel for kategori"],"not_rendered":{"charts":3,"defined_names":23,"pivot_tables":2},"read":"whole","date_system":"1900"}

{"sheet":"Start","index":0,"n_rows":8,"n_cols":2,"rows_kept":8}
[null,"Om skabelonen"]
[null,"Brug denne skabelon til at oprette et halvmånedligt privatbudget."]
[null,"Regnearket Dashboard indeholder diagrammer for samlede månedlige og årlige udgifter og en tabel for indtægter og udgifter i 2-ugers perioder."]
[null,"Angiv kategorier i regnearket Datalister og værdier i regnearket Indtægter og udgifter."]
[null,"Opdater pivottabellen i regnearket Budgetrapport."]
[null,"Bemærk!"]
[null,"Der er angivet yderligere vejledning i kolonne A i alle regneark. Denne tekst er skjult med vilje. Du kan fjerne tekst ved at markere kolonne A og derefter vælge SLET. "]
[null,"Hvis du vil vide mere om tabeller, skal du trykke på SHIFT og derefter F10, mens du er i en tabel, vælge indstillingen TABEL og derefter vælge ALTERNATIV TEKST. I en pivottabel skal du trykke på SHIFT og derefter F10, mens du er i en tabel, vælge INDSTILLINGER FOR PIVOTTABEL og derefter vælge fanen ALTERNATIV TEKST."]

{"sheet":"Dashboard","index":1,"n_rows":12,"n_cols":15,"rows_kept":12,"merged":[[0,1,0,13],[1,2,1,7]]}
["Opret et dashboard for samlede månedlige og årlige udgifter og for indtægter og udgifter i 2-ugers perioder i dette regneark. I cellerne i denne kolonne vises en udførlig vejledning i, hvordan man bruger dette regneark. Denne projektmappes titel er en cellen til højre, og regnearkets titel er i celle O1.","Halvmånedligt privatbudget",{"$nulls":12},"DASHBOARD"]
["Vælg skyderen i celle C2 for at ændre måneden i cellen til højre. Hvis du vil ændre året i celle I2, skal du vælge skyderen i celle J2.",{"$f":"CHOOSE(Månedsnummer,\"JANUAR\",\"FEBRUAR\",\"MARTS\",\"APRIL\",\"MAJ\",\"JUNI\",\"JULI\",\"AUGUST\",\"SEPTEMBER\",\"OKTOBER\",\"NOVEMBER\",\"DECEMBER\")","v":"DECEMBER"},12,{"$nulls":5},{"$f":"YEAR(TODAY())","v":2022}]
["Etiketten Samlede månedsudgifter er i cellen til højre og etiketten Samlede årsudgifter er i celle I3.","SAMLEDE MÅNEDSUDGIFTER",{"$nulls":6},"SAMLEDE ÅRSUDGIFTER"]
["Liggende søjlediagram, der sammenligner samlede månedsindtægter med samlede månedsudgifter, er i celle C4, og liggende søjlediagram, der sammenligner samlede årsindtægter med samlede årsudgifter, er i celle J4. Den næste vejledning er i celle A8.","INDTÆGTER",null,{"$f":"MånedligeUdligningerTotaler","v":{"v":0,"d":"kr. 0"}},{"$nulls":4},"INDTÆGTER",null,null,{"$f":"ÅrligeUdgifterTotaler","v":{"v":10742,"d":"kr. 10,742"}}]
[null,"UDGIFTER",null,{"$f":"MånedligIndkomstTotaler","v":{"v":0,"d":"kr. 0"}},{"$nulls":4},"UDGIFTER",null,null,{"$f":"ÅrligeIndtægterTotaler","v":{"v":13200,"d":"kr. 13,200"}}]
[]
[]
["Dashboardtabellen, der starter i cellen til højre, opdateres automatisk.","Kategori","JANUAR","FEBRUAR","MARTS","APRIL","MAJ","JUNI","JULI","AUGUST","SEPTEMBER","OKTOBER","NOVEMBER","DECEMBER","Minidiagram"]
[null,"Indtægt 1-15",{"$f":"SUMIFS(Indtægt[BELØB],Indtægt[DATO],\"<=\"&DtMiira,Indtægt[DATO],\">=\"&DtStart)","v":{"v":0,"d":"kr. 0.00"}},{"$f":"SUMIFS(Indtægt[BELØB],Indtægt[DATO],\"<=\"&DtMiira,Indtægt[DATO],\">=\"&DtStart)","v":{"v":0,"d":"kr. 0.00"}},{"$f":"SUMIFS(Indtægt[BELØB],Indtægt[DATO],\"<=\"&DtMiira,Indtægt[DATO],\">=\"&DtStart)","v":{"v":1300,"d":"kr. 1,300.00"}},{"$f":"SUMIFS(Indtægt[BELØB],Indtægt[DATO],\"<=\"&DtMiira,Indtægt[DATO],\">=\"&DtStart)","v":{"v":2600,"d":"kr. 2,600.00"}},{"$f":"SUMIFS(Indtægt[BELØB],Indtægt[DATO],\"<=\"&DtMiira,Indtægt[DATO],\">=\"&DtStart)","v":{"v":2600,"d":"kr. 2,600.00"}},{"$f":"SUMIFS(Indtægt[BELØB],Indtægt[DATO],\"<=\"&DtMiira,Indtægt[DATO],\">=\"&DtStart)","v":{"v":0,"d":"kr. 0.00"}},{"$f":"SUMIFS(Indtægt[BELØB],Indtægt[DATO],\"<=\"&DtMiira,Indtægt[DATO],\">=\"&DtStart)","v":{"v":0,"d":"kr. 0.00"}},{"$f":"SUMIFS(Indtægt[BELØB],Indtægt[DATO],\"<=\"&DtMiira,Indtægt[DATO],\">=\"&DtStart)","v":{"v":0,"d":"kr. 0.00"}},{"$f":"SUMIFS(Indtægt[BELØB],Indtægt[DATO],\"<=\"&DtMiira,Indtægt[DATO],\">=\"&DtStart)","v":{"v":0,"d":"kr. 0.00"}},{"$f":"SUMIFS(Indtægt[BELØB],Indtægt[DATO],\"<=\"&DtMiira,Indtægt[DATO],\">=\"&DtStart)","v":{"v":0,"d":"kr. 0.00"}},{"$f":"SUMIFS(Indtægt[BELØB],Indtægt[DATO],\"<=\"&DtMiira,Indtægt[DATO],\">=\"&DtStart)","v":{"v":0,"d":"kr. 0.00"}},{"$f":"SUMIFS(Indtægt[BELØB],Indtægt[DATO],\"<=\"&DtMiira,Indtægt[DATO],\">=\"&DtStart)","v":{"v":0,"d":"kr. 0.00"}}]
[null,"Indtægt 16-EOM",{"$f":"SUMIFS(Indtægt[BELØB],Indtægt[DATO],\"<=\"&DtEnd,Indtægt[DATO],\">=\"&DtMiira+1)","v":{"v":0,"d":"kr. 0.00"}},{"$f":"SUMIFS(Indtægt[BELØB],Indtægt[DATO],\"<=\"&DtEnd,Indtægt[DATO],\">=\"&DtMiira+1)","v":{"v":0,"d":"kr. 0.00"}},{"$f":"SUMIFS(Indtægt[BELØB],Indtægt[DATO],\"<=\"&DtEnd,Indtægt[DATO],\">=\"&DtMiira+1)","v":{"v":3100,"d":"kr. 3,100.00"}},{"$f":"SUMIFS(Indtægt[BELØB],Indtægt[DATO],\"<=\"&DtEnd,Indtægt[DATO],\">=\"&DtMiira+1)","v":{"v":3100,"d":"kr. 3,100.00"}},{"$f":"SUMIFS(Indtægt[BELØB],Indtægt[DATO],\"<=\"&DtEnd,Indtægt[DATO],\">=\"&DtMiira+1)","v":{"v":500,"d":"kr. 500.00"}},{"$f":"SUMIFS(Indtægt[BELØB],Indtægt[DATO],\"<=\"&DtEnd,Indtægt[DATO],\">=\"&DtMiira+1)","v":{"v":0,"d":"kr. 0.00"}},{"$f":"SUMIFS(Indtægt[BELØB],Indtægt[DATO],\"<=\"&DtEnd,Indtægt[DATO],\">=\"&DtMiira+1)","v":{"v":0,"d":"kr. 0.00"}},{"$f":"SUMIFS(Indtægt[BELØB],Indtægt[DATO],\"<=\"&DtEnd,Indtægt[DATO],\">=\"&DtMiira+1)","v":{"v":0,"d":"kr. 0.00"}},{"$f":"SUMIFS(Indtægt[BELØB],Indtægt[DATO],\"<=\"&DtEnd,Indtægt[DATO],\">=\"&DtMiira+1)","v":{"v":0,"d":"kr. 0.00"}},{"$f":"SUMIFS(Indtægt[BELØB],Indtægt[DATO],\"<=\"&DtEnd,Indtægt[DATO],\">=\"&DtMiira+1)","v":{"v":0,"d":"kr. 0.00"}},{"$f":"SUMIFS(Indtægt[BELØB],Indtægt[DATO],\"<=\"&DtEnd,Indtægt[DATO],\">=\"&DtMiira+1)","v":{"v":0,"d":"kr. 0.00"}},{"$f":"SUMIFS(Indtægt[BELØB],Indtægt[DATO],\"<=\"&DtEnd,Indtægt[DATO],\">=\"&DtMiira+1)","v":{"v":0,"d":"kr. 0.00"}}]
[null,"Udgifter 1-15",{"$f":"SUMIFS(Udgifter[BELØB],Udgifter[DATO],\"<=\"&DtMiira+1,Udgifter[DATO],\">=\"&DtStart)","v":{"v":0,"d":"kr. 0.00"}},{"$f":"SUMIFS(Udgifter[BELØB],Udgifter[DATO],\"<=\"&DtMiira+1,Udgifter[DATO],\">=\"&DtStart)","v":{"v":0,"d":"kr. 0.00"}},{"$f":"SUMIFS(Udgifter[BELØB],Udgifter[DATO],\"<=\"&DtMiira+1,Udgifter[DATO],\">=\"&DtStart)","v":{"v":1225,"d":"kr. 1,225.00"}},{"$f":"SUMIFS(Udgifter[BELØB],Udgifter[DATO],\"<=\"&DtMiira+1,Udgifter[DATO],\">=\"&DtStart)","v":{"v":5150,"d":"kr. 5,150.00"}},{"$f":"SUMIFS(Udgifter[BELØB],Udgifter[DATO],\"<=\"&DtMiira+1,Udgifter[DATO],\">=\"&DtStart)","v":{"v":2792,"d":"kr. 2,792.00"}},{"$f":"SUMIFS(Udgifter[BELØB],Udgifter[DATO],\"<=\"&DtMiira+1,Udgifter[DATO],\">=\"&DtStart)","v":{"v":0,"d":"kr. 0.00"}},{"$f":"SUMIFS(Udgifter[BELØB],Udgifter[DATO],\"<=\"&DtMiira+1,Udgifter[DATO],\">=\"&DtStart)","v":{"v":0,"d":"kr. 0.00"}},{"$f":"SUMIFS(Udgifter[BELØB],Udgifter[DATO],\"<=\"&DtMiira+1,Udgifter[DATO],\">=\"&DtStart)","v":{"v":0,"d":"kr. 0.00"}},{"$f":"SUMIFS(Udgifter[BELØB],Udgifter[DATO],\"<=\"&DtMiira+1,Udgifter[DATO],\">=\"&DtStart)","v":{"v":0,"d":"kr. 0.00"}},{"$f":"SUMIFS(Udgifter[BELØB],Udgifter[DATO],\"<=\"&DtMiira+1,Udgifter[DATO],\">=\"&DtStart)","v":{"v":0,"d":"kr. 0.00"}},{"$f":"SUMIFS(Udgifter[BELØB],Udgifter[DATO],\"<=\"&DtMiira+1,Udgifter[DATO],\">=\"&DtStart)","v":{"v":0,"d":"kr. 0.00"}},{"$f":"SUMIFS(Udgifter[BELØB],Udgifter[DATO],\"<=\"&DtMiira+1,Udgifter[DATO],\">=\"&DtStart)","v":{"v":0,"d":"kr. 0.00"}}]
[null,"Udgifter 16-EOM",{"$f":"SUMIFS(Udgifter[BELØB],Udgifter[DATO],\"<=\"&DtEnd,Udgifter[DATO],\">=\"&DtMiira+1)","v":{"v":0,"d":"kr. 0.00"}},{"$f":"SUMIFS(Udgifter[BELØB],Udgifter[DATO],\"<=\"&DtEnd,Udgifter[DATO],\">=\"&DtMiira+1)","v":{"v":0,"d":"kr. 0.00"}},{"$f":"SUMIFS(Udgifter[BELØB],Udgifter[DATO],\"<=\"&DtEnd,Udgifter[DATO],\">=\"&DtMiira+1)","v":{"v":200,"d":"kr. 200.00"}},{"$f":"SUMIFS(Udgifter[BELØB],Udgifter[DATO],\"<=\"&DtEnd,Udgifter[DATO],\">=\"&DtMiira+1)","v":{"v":875,"d":"kr. 875.00"}},{"$f":"SUMIFS(Udgifter[BELØB],Udgifter[DATO],\"<=\"&DtEnd,Udgifter[DATO],\">=\"&DtMiira+1)","v":{"v":500,"d":"kr. 500.00"}},{"$f":"SUMIFS(Udgifter[BELØB],Udgifter[DATO],\"<=\"&DtEnd,Udgifter[DATO],\">=\"&DtMiira+1)","v":{"v":0,"d":"kr. 0.00"}},{"$f":"SUMIFS(Udgifter[BELØB],Udgifter[DATO],\"<=\"&DtEnd,Udgifter[DATO],\">=\"&DtMiira+1)","v":{"v":0,"d":"kr. 0.00"}},{"$f":"SUMIFS(Udgifter[BELØB],Udgifter[DATO],\"<=\"&DtEnd,Udgifter[DATO],\">=\"&DtMiira+1)","v":{"v":0,"d":"kr. 0.00"}},{"$f":"SUMIFS(Udgifter[BELØB],Udgifter[DATO],\"<=\"&DtEnd,Udgifter[DATO],\">=\"&DtMiira+1)","v":{"v":0,"d":"kr. 0.00"}},{"$f":"SUMIFS(Udgifter[BELØB],Udgifter[DATO],\"<=\"&DtEnd,Udgifter[DATO],\">=\"&DtMiira+1)","v":{"v":0,"d":"kr. 0.00"}},{"$f":"SUMIFS(Udgifter[BELØB],Udgifter[DATO],\"<=\"&DtEnd,Udgifter[DATO],\">=\"&DtMiira+1)","v":{"v":0,"d":"kr. 0.00"}},{"$f":"SUMIFS(Udgifter[BELØB],Udgifter[DATO],\"<=\"&DtEnd,Udgifter[DATO],\">=\"&DtMiira+1)","v":{"v":0,"d":"kr. 0.00"}}]

{"sheet":"Udgifter og indtægter","index":2,"n_rows":36,"n_cols":9,"rows_kept":36,"merged":[[0,1,0,6],[0,7,0,8]]}
["Opret en liste over indtægter og udgifter i dette regneark. I cellerne i denne kolonne vises en udførlig vejledning i, hvordan man bruger dette regneark. Projektmappens titel er i cellen til højre, og regnearkets titel er i celle H1.",{"$f":"Semi_Monthly_Home_Budget_Title","v":"Halvmånedligt privatbudget"},{"$nulls":5},"INDTÆGTER OG UDGIFTER"]
["Etiketten Indtægt er i cellen til højre, og etiketten Udgifter er i celle F2.","INDTÆGTER",{"$nulls":3},"UDGIFTER"]
["Angiv oplysningerne i tabellen Indtægt, som starter i cellen til højre, og i tabellen Udgifter, som starter i celle F3.","DATO","BESKRIVELSE","BELØB",null,"DATO","KATEGORI","BESKRIVELSE","BELØB"]
[null,{"$f":"TODAY()","v":"2022-05-18"},"Bonus",{"v":500,"d":"kr. 500.00"},null,{"$f":"TODAY()","v":"2022-05-18"},"Medicin","Forsikring",{"v":500,"d":"kr. 500.00"}]
[null,{"$f":"TODAY()-14","v":"2022-05-04"},"Davids lønseddel",{"v":1300,"d":"kr. 1,300.00"},null,{"$f":"TODAY()-7","v":"2022-05-11"},"Husholdning","Boliglån",{"v":1000,"d":"kr. 1,000.00"}]
[null,{"$f":"TODAY()-14","v":"2022-05-04"},"Pats lønseddel",{"v":1300,"d":"kr. 1,300.00"},null,"2022-05-11","Husholdning","El",{"v":100,"d":"kr. 100.00"}]
[null,{"$f":"TODAY()-28","v":"2022-04-20"},"Davids lønseddel",{"v":1500,"d":"kr. 1,500.00"},null,"2022-05-11","Husholdning","Vand/kloak",{"v":50,"d":"kr. 50.00"}]
[null,{"$f":"TODAY()-28","v":"2022-04-20"},"Pats lønseddel",{"v":1600,"d":"kr. 1,600.00"},null,"2022-05-11","Husholdning","Affald",{"v":25,"d":"kr. 25.00"}]
[null,{"$f":"TODAY()-42","v":"2022-04-06"},"Davids lønseddel",{"v":1300,"d":"kr. 1,300.00"},null,"2022-05-11","Husholdning","Mobiltelefon",{"v":100,"d":"kr. 100.00"}]
[null,{"$f":"TODAY()-42","v":"2022-04-06"},"Pats lønseddel",{"v":1300,"d":"kr. 1,300.00"},null,"2022-05-11","Husholdning","Mobiltelefon",{"v":30,"d":"kr. 30.00"}]
[null,{"$f":"TODAY()-56","v":"2022-03-23"},"Davids lønseddel",{"v":1500,"d":"kr. 1,500.00"},null,"2022-05-11","Husholdning","Boliglån",{"v":50,"d":"kr. 50.00"}]
[null,{"$f":"TODAY()-56","v":"2022-03-23"},"Pats lønseddel",{"v":1600,"d":"kr. 1,600.00"},null,"2022-05-11","Husholdning","Mobiltelefon",{"v":50,"d":"kr. 50.00"}]
[null,{"$f":"TODAY()-70","v":"2022-03-09"},"Davids lønseddel",{"v":1300,"d":"kr. 1,300.00"},null,{"$f":"TODAY()-7","v":"2022-05-11"},"Husholdning","Mobiltelefon",{"v":25,"d":"kr. 25.00"}]
[{"$nulls":5},{"$f":"TODAY()-8","v":"2022-05-10"},"Husholdning","El",{"v":100,"d":"kr. 100.00"}]
[{"$nulls":5},{"$f":"TODAY()-9","v":"2022-05-09"},"Underholdning","Film",{"v":37,"d":"kr. 37.00"}]
[{"$nulls":5},{"$f":"TODAY()-10","v":"2022-05-08"},"Mad","Dagligvarer",{"v":350,"d":"kr. 350.00"}]
[{"$nulls":5},{"$f":"TODAY()-11","v":"2022-05-07"},"Mad","Restaurantbesøg",{"v":75,"d":"kr. 75.00"}]
[{"$nulls":5},{"$f":"TODAY()-12","v":"2022-05-06"},"Børn","Frokostpenge",{"v":150,"d":"kr. 150.00"}]
[{"$nulls":5},{"$f":"TODAY()-13","v":"2022-05-05"},"Investeringskonti","Opsparing",{"v":250,"d":"kr. 250.00"}]
[{"$nulls":5},{"$f":"TODAY()-14","v":"2022-05-04"},"Investeringskonti","Investeringskonto",{"v":250,"d":"kr. 250.00"}]
[{"$nulls":5},{"$f":"TODAY()-15","v":"2022-05-03"},"Personlig","Sundhed/fitnesscenter",{"v":100,"d":"kr. 100.00"}]
[{"$nulls":5},{"$f":"TODAY()-16","v":"2022-05-02"},"Kæledyr","Mad",{"v":50,"d":"kr. 50.00"}]
[{"$nulls":5},{"$f":"TODAY()-20","v":"2022-04-28"},"Kæledyr","Pleje",{"v":50,"d":"kr. 50.00"}]
[{"$nulls":5},{"$f":"TODAY()-20","v":"2022-04-28"},"Kæledyr","Andet",{"v":50,"d":"kr. 50.00"}]
[{"$nulls":5},{"$f":"TODAY()-25","v":"2022-04-23"},"Transport","Betaling for bil 1 ",{"v":300,"d":"kr. 300.00"}]
[{"$nulls":5},{"$f":"TODAY()-25","v":"2022-04-23"},"Transport","Betaling for bil 2 ",{"v":350,"d":"kr. 350.00"}]
[{"$nulls":5},{"$f":"TODAY()-25","v":"2022-04-23"},"Transport","Bilforsikring",{"v":50,"d":"kr. 50.00"}]
[{"$nulls":5},{"$f":"TODAY()-30","v":"2022-04-18"},"Transport","Brændstof",{"v":50,"d":"kr. 50.00"}]
[{"$nulls":5},{"$f":"TODAY()-31","v":"2022-04-17"},"Transport","Brændstof",{"v":25,"d":"kr. 25.00"}]
[{"$nulls":5},{"$f":"TODAY()-42","v":"2022-04-06"},"Transport","Betaling for bil 2 ",{"v":150,"d":"kr. 150.00"}]
[{"$nulls":5},{"$f":"TODAY()-45","v":"2022-04-03"},"Husholdning","Boliglån",{"v":5000,"d":"kr. 5,000.00"}]
[{"$nulls":5},{"$f":"TODAY()-50","v":"2022-03-29"},"Husholdning","El",{"v":200,"d":"kr. 200.00"}]
[{"$nulls":5},{"$f":"TODAY()-65","v":"2022-03-14"},"Husholdning","Mobiltelefon",{"v":100,"d":"kr. 100.00"}]
[{"$nulls":5},{"$f":"TODAY()-70","v":"2022-03-09"},"Husholdning","Affald",{"v":50,"d":"kr. 50.00"}]
[{"$nulls":5},{"$f":"TODAY()-75","v":"2022-03-04"},"Husholdning","Boliglån",{"v":1000,"d":"kr. 1,000.00"}]
[{"$nulls":5},{"$f":"TODAY()-78","v":"2022-03-01"},"Underholdning","Film",{"v":75,"d":"kr. 75.00"}]

{"sheet":"Budgetrapport","index":3,"n_rows":26,"n_cols":6,"rows_kept":26,"merged":[[0,1,0,4],[1,1,1,3],[4,3,4,5]]}
["Opret en budgetrapport i dette regneark. I cellerne i denne kolonne vises en udførlig vejledning i, hvordan man bruger dette regneark. Projektmappens titel er i cellen til højre, og regnearkets titel er i celle F1.",{"$f":"Semi_Monthly_Home_Budget_Title","v":"Halvmånedligt privatbudget"},{"$nulls":3},"BUDGETRAPPORT"]
["Vælg år, kvartaler, måneder eller dage, og brug skyderen i cellen til højre for at se pivottabellen Udgifter for den valgte periode. Kategoriudsnit, der bruges til at filtrere data i pivottabellen, er i celle E2, og Beskrivelsesudsnit er i celle F2.","Tidslinje, der skal filtreres, er i denne celle.",null,null,"Udsnit, der filtrerer pivottabeldata på baggrund af kategori, er i denne celle.","Udsnit, der filtrerer pivottabeldata på baggrund af beskrivelse, er i denne celle."]
["Der er tip i cellen til højre.","Tryk på Shift+F10 i pivottabellen Udgifter, og vælg derefter Opdater for at opdatere dataene i dette ark, eller vælg Opdater under fanen Analysér."]
["Etiketten Udgifter er i cellen til højre.","UDGIFTER"]
["Pivottabel, der viser udgifter, starter i cellen til højre. Etiketten Samlede kategoriudgifter er i celle D4.","Rækkemærkater","Sum af BELØB","KATEGORITOTALER"]
["Cirkeldiagram, der sammenligner hver kategoris samlede udgifter, er i celle D6.","Betaling for bil 1 ",{"v":300,"d":"kr. 300.00 "}]
[null,"Affald",{"v":75,"d":"kr. 75.00 "}]
[null,"Andet",{"v":50,"d":"kr. 50.00 "}]
[null,"Betaling for bil 2 ",{"v":500,"d":"kr. 500.00 "}]
[null,"Bilforsikring",{"v":50,"d":"kr. 50.00 "}]
[null,"Boliglån",{"v":7050,"d":"kr. 7,050.00 "}]
[null,"Brændstof",{"v":75,"d":"kr. 75.00 "}]
[null,"Dagligvarer",{"v":350,"d":"kr. 350.00 "}]
[null,"El",{"v":400,"d":"kr. 400.00 "}]
[null,"Film",{"v":112,"d":"kr. 112.00 "}]
[null,"Forsikring",{"v":500,"d":"kr. 500.00 "}]
[null,"Frokostpenge",{"v":150,"d":"kr. 150.00 "}]
[null,"Investeringskonto",{"v":250,"d":"kr. 250.00 "}]
[null,"Mad",{"v":50,"d":"kr. 50.00 "}]
[null,"Mobiltelefon",{"v":305,"d":"kr. 305.00 "}]
[null,"Opsparing",{"v":250,"d":"kr. 250.00 "}]
[null,"Pleje",{"v":50,"d":"kr. 50.00 "}]
[null,"Restaurantbesøg",{"v":75,"d":"kr. 75.00 "}]
[null,"Sundhed/fitnesscenter",{"v":100,"d":"kr. 100.00 "}]
[null,"Vand/kloak",{"v":50,"d":"kr. 50.00 "}]
[null,"Hovedtotal",{"v":10742,"d":"kr. 10,742.00 "}]

{"sheet":"Datalister","index":4,"n_rows":8,"n_cols":13,"rows_kept":8,"merged":[[0,1,0,11]]}
["Angiv kategoridata i dette regneark for at udfylde rullelisterne i tabellen Udgifter i regnearket Udgifter og indtægter. Rediger kategorinavne eller beskrivelser under hver kategori for at opdatere listerne. I cellerne i denne kolonne vises en udførlig vejledning i, hvordan man bruger dette regneark. Projektmappens titel er i cellen til højre, og regnearkets titel er i celle M1.",{"$f":"Semi_Monthly_Home_Budget_Title","v":"Halvmånedligt privatbudget"},{"$nulls":10},"DATALISTER"]
["Der er tip i cellen til højre.","KONFIGURATION         Nedenstående kategoridata udfylder rullelisterne i tabellen Udgifter i arket Udgifter og indtægter. Rediger kategorinavnene eller beskrivelserne under hver kategori for at opdatere listerne."]
["Angiv eller rediger kategorinavne eller beskrivelser under hver kategori i tabellen, der starter i cellen til højre.","Husholdning","Underholdning","Mad","Gaver/donationer","Børn","Investeringskonti","Medicin","Andet","Personlig","Kæledyr","Skatter/afgifter","Transport"]
[null,"Boliglån","Film","Dagligvarer","Velgørenhed 1","Tøj","Privatpension","Læge/klinik","Andet","Beklædning","Mad","National","Betaling for bil 1 "]
[null,"El","Video/film","Restaurantbesøg","Velgørenhed 2","Legetøj/spil","Opsparing","Forsikring","Organisationsvedtægter","Hår/negle","Forsyninger","Regional","Betaling for bil 2 "]
[null,"Vand/kloak","Musik",null,"Velgørenhed 3","Frokostpenge","Forbrugskonto",null,null,"Tøjrens","Medicin","Lokal","Bilforsikring"]
[null,"Affald","Koncerter/teater",null,"Gave","Vederlag/gebyrer","Pension",null,null,"Sundhed/fitnesscenter","Pleje","Andet","Licenser/registrering"]
[null,"Mobiltelefon","Sportsbegivenheder",null,null,"Skoleudstyr","Investeringskonto",null,null,"Indkøb","Andet","Advokat","Brændstof"]

{"sheet":"Pivottabel for kategori","index":5,"n_rows":13,"n_cols":13,"rows_kept":13,"hidden":true}
[null,"Halvmånedligt privatbudget",{"$nulls":10},"KATEGORIPIVOT"]
[null,"Denne pivottabel er datakilden for pivotdiagrammet Samlede kategoriudgifter i budgetrapporten. "]
[null,"Rækkemærkater","Sum af BELØB"]
[null,"Børn",{"v":150,"d":"kr. 150"}]
[null,"Husholdning",{"v":7880,"d":"kr. 7,880"}]
[null,"Investeringskonti",{"v":500,"d":"kr. 500"}]
[null,"Kæledyr",{"v":150,"d":"kr. 150"}]
[null,"Mad",{"v":425,"d":"kr. 425"}]
[null,"Medicin",{"v":500,"d":"kr. 500"}]
[null,"Personlig",{"v":100,"d":"kr. 100"}]
[null,"Transport",{"v":925,"d":"kr. 925"}]
[null,"Underholdning",{"v":112,"d":"kr. 112"}]
[null,"Hovedtotal",{"v":10742,"d":"kr. 10,742"}]